[Event "Championnat d'Europe de Blitz"]
[Date "2024.12.09"]
[White "Jobava, Baadur"]
[Black "Kazakouski, Valery"]
[WhiteElo "2578"]
[BlackElo "2567"]
[Round "6.1"]
[Result "1-0"]
[TimeControl "180+2"]

1. e4 {[%clk 00:03:02]} e5 {[%emt 00:00:02] [%clk 00:03:03]} 2. Nf3 {[%clk
00:03:02]} Nc6 {[%clk 00:03:05]} 3. d4 {[%clk 00:03:04]} exd4 {[%emt 00:00:01]
[%clk 00:03:06]} 4. Nxd4 {[%clk 00:03:05]} Qf6 {[%emt 00:00:01] [%clk 00:03:06]}
5. Nf5 {[%emt 00:00:02] [%clk 00:03:05]} Bb4+ {[%emt 00:00:09] [%clk 00:02:59]}
6. c3 {[%emt 00:00:09] [%clk 00:02:58]} Bc5 {[%emt 00:00:01] [%clk 00:03:00]} 7.
Be3 {[%emt 00:00:04] [%clk 00:02:56]} Bxe3 {[%emt 00:00:08] [%clk 00:02:55]} 8.
Nxe3 {[%emt 00:00:01] [%clk 00:02:56]} Nge7 {[%emt 00:00:02] [%clk 00:02:55]} 9.
g3 {[%emt 00:00:09] [%clk 00:02:49]} d6 {[%emt 00:00:06] [%clk 00:02:51]} 10.
Bg2 {[%emt 00:00:01] [%clk 00:02:50]} h5 {[%emt 00:00:03] [%clk 00:02:50]} 11.
h4 {[%emt 00:00:19] [%clk 00:02:33]} Bd7 {[%emt 00:00:08] [%clk 00:02:44]} 12.
Nd2 {[%emt 00:00:04] [%clk 00:02:30]} O-O-O {[%emt 00:00:26]} 13. f4 {[%clk
00:02:17]} Qg6 {[%emt 00:00:05] [%clk 00:02:33]} 14. Kf2 {[%emt 00:00:02] [%clk
00:02:17]} f5 {[%emt 00:00:01] [%clk 00:02:34]} 15. Re1 {[%emt 00:00:13] [%clk
00:02:06]} Rhf8 {[%emt 00:00:20] [%clk 00:02:16]} 16. a4 {[%emt 00:00:33] [%clk
00:01:35]} Rde8 {[%emt 00:00:11] [%clk 00:02:08]} 17. a5 {[%emt 00:00:01] [%clk
00:01:35]} a6 {[%emt 00:00:03] [%clk 00:02:07]} 18. b4 {[%emt 00:00:11] [%clk
00:01:27]} fxe4 {[%emt 00:00:01] [%clk 00:02:08]} 19. Nxe4 {[%emt 00:00:01]
[%clk 00:01:27]} Nf5 {[%emt 00:00:25] [%clk 00:01:45]} 20. Nxf5 {[%emt 00:00:02]
[%clk 00:01:28]} Bxf5 {[%emt 00:00:01] [%clk 00:01:46]} 21. Qd5 {[%emt 00:00:08]
[%clk 00:01:21]} Bd7 {[%emt 00:00:54] [%clk 00:00:54]} 22. Bf3 {[%emt 00:00:49]
[%clk 00:00:34]} Rf5 {[%emt 00:00:13] [%clk 00:00:44]} 23. Qd3 {[%emt 00:00:05]
[%clk 00:00:30]} Ref8 {[%emt 00:00:18] [%clk 00:00:28]} 24. Re3 {[%emt 00:00:02]
[%clk 00:00:30]} Nd8 {[%emt 00:00:17] [%clk 00:00:14]} 25. Ng5 {[%emt 00:00:03]
[%clk 00:00:29]} Bc6 {[%emt 00:00:03] [%clk 00:00:12]} 26. Rae1 {[%emt 00:00:04]
[%clk 00:00:27]} Bxf3 {[%emt 00:00:01] [%clk 00:00:13]} 27. Kxf3 {[%emt
00:00:07] [%clk 00:00:22]} Kd7 {[%emt 00:00:08] [%clk 00:00:07]} 28. Re7+ {[%emt
00:00:03] [%clk 00:00:21]} Kc8 {[%clk 00:00:08]} 29. R1e3 {[%emt 00:00:03] [%clk
00:00:20]} Nc6 {[%emt 00:00:05] [%clk 00:00:05]} 30. R7e6 {[%emt 00:00:04] [%clk
00:00:19]} R8f6 {[%clk 00:00:07]} 31. Kg2 {[%emt 00:00:07] [%clk 00:00:14]} Nd8
{[%emt 00:00:02] [%clk 00:00:06]} 32. Re8 {[%emt 00:00:03] [%clk 00:00:13]} Kd7
{[%emt 00:00:04] [%clk 00:00:04]} 33. R3e7+ {[%emt 00:00:01] [%clk 00:00:14]}
Kc8 {[%clk 00:00:06]} 34. Qe4 {[%emt 00:00:04] [%clk 00:00:12]} d5 {[%emt
00:00:03] [%clk 00:00:05]} 35. Qe3 {[%emt 00:00:01] [%clk 00:00:13]} Rc6 {[%emt
00:00:02] [%clk 00:00:05]} 36. Qa7 {[%emt 00:00:02] [%clk 00:00:13]} 1-0

[Site "Europe Echecs"]

[Event "Championnat d'Europe de Blitz"]
[Date "2024.12.09"]
[White "Muradli, Mahammad"]
[Black "Pichot, Alan"]
[WhiteElo "2588"]
[BlackElo "2637"]
[Round "6.2"]
[Result "0-1"]
[TimeControl "180+2"]

1. Nf3 {[%emt 00:17:54] [%clk 00:03:02]} Nf6 {[%emt 00:00:02] [%clk 00:03:02]}
2. c4 {[%clk 00:03:04]} e6 {[%emt 00:00:02] [%clk 00:03:02]} 3. g3 {[%clk
00:03:05]} d5 {[%emt 00:00:01] [%clk 00:03:03]} 4. Bg2 {[%clk 00:03:06]} Be7
{[%emt 00:00:02] [%clk 00:03:02]} 5. O-O {[%emt 00:00:04] [%clk 00:03:05]} O-O
{[%emt 00:00:01] [%clk 00:03:03]} 6. b3 {[%emt 00:00:01] [%clk 00:03:06]} d4
{[%emt 00:00:02] [%clk 00:03:03]} 7. e3 {[%emt 00:00:04] [%clk 00:03:04]} c5
{[%emt 00:00:01] [%clk 00:03:04]} 8. Ne5 {[%emt 00:00:07] [%clk 00:02:59]} Qc7
{[%emt 00:00:01] [%clk 00:03:04]} 9. exd4 {[%emt 00:00:01] [%clk 00:03:00]} cxd4
{[%emt 00:00:02] [%clk 00:03:05]} 10. Re1 {[%emt 00:00:07] [%clk 00:02:55]} Nbd7
{[%emt 00:00:02] [%clk 00:03:06]} 11. Qe2 {[%emt 00:00:03] [%clk 00:02:54]} Qxe5
{[%emt 00:00:01] [%clk 00:03:06]} 12. Qxe5 {[%emt 00:00:01] [%clk 00:02:55]}
Nxe5 {[%emt 00:00:01] [%clk 00:03:07]} 13. Rxe5 {[%emt 00:00:01] [%clk
00:02:56]} Nd7 {[%emt 00:00:02] [%clk 00:03:08]} 14. Re4 {[%clk 00:02:57]} Nc5
{[%emt 00:00:02] [%clk 00:03:08]} 15. Rxd4 {[%emt 00:00:01] [%clk 00:02:58]} Bf6
{[%emt 00:00:01] [%clk 00:03:08]} 16. Bb2 {[%emt 00:00:01] [%clk 00:02:59]} Nd3
{[%emt 00:00:14] [%clk 00:02:56]} 17. Bc3 {[%emt 00:00:02] [%clk 00:03:00]} Bxd4
{[%emt 00:00:01] [%clk 00:02:56]} 18. Bxd4 {[%emt 00:00:01] [%clk 00:03:01]} Rd8
{[%emt 00:00:01] [%clk 00:02:57]} 19. Be3 {[%emt 00:00:04] [%clk 00:03:00]} Nb4
{[%emt 00:00:02] [%clk 00:02:57]} 20. Nc3 {[%emt 00:00:01] [%clk 00:03:01]} Nc2
{[%emt 00:00:02] [%clk 00:02:57]} 21. Rd1 {[%emt 00:00:01] [%clk 00:03:02]} Nxe3
{[%emt 00:00:03] [%clk 00:02:56]} 22. fxe3 {[%emt 00:00:01] [%clk 00:03:03]} Rb8
{[%emt 00:00:07] [%clk 00:02:50]} 23. d4 {[%emt 00:00:08] [%clk 00:02:57]} b6
{[%emt 00:00:05] [%clk 00:02:47]} 24. e4 {[%emt 00:00:43] [%clk 00:02:16]} e5
{[%emt 00:00:02] [%clk 00:02:48]} 25. d5 {[%emt 00:00:26] [%clk 00:01:57]} Bd7
{[%clk 00:02:45]} 26. Kf2 {[%emt 00:00:06] [%clk 00:01:53]} Kf8 {[%emt 00:00:03]
[%clk 00:02:44]} 27. Ke3 {[%emt 00:00:15] [%clk 00:01:40]} Ke7 {[%emt 00:00:11]
[%clk 00:02:35]} 28. b4 {[%emt 00:00:28] [%clk 00:01:15]} Rdc8 {[%emt 00:00:04]
[%clk 00:02:32]} 29. Bf1 {[%emt 00:00:02] [%clk 00:01:16]} Kd6 {[%emt 00:00:16]
[%clk 00:02:18]} 30. Bd3 {[%emt 00:00:23] [%clk 00:00:54]} Rc7 {[%emt 00:00:07]
[%clk 00:02:12]} 31. Rc1 {[%emt 00:00:33] [%clk 00:00:24]} Rbc8 {[%emt 00:00:03]
[%clk 00:02:11]} 32. Nb1 {[%emt 00:00:19] [%clk 00:00:08]} a5 {[%emt 00:00:02]
[%clk 00:02:11]} 33. a3 {[%emt 00:00:03] [%clk 00:00:06]} axb4 {[%emt 00:00:05]
[%clk 00:02:08]} 34. axb4 {[%clk 00:00:08]} Ra8 {[%emt 00:00:01] [%clk
00:02:09]} 35. Nc3 {[%emt 00:00:01] [%clk 00:00:08]} Ra3 {[%emt 00:00:06] [%clk
00:02:05]} 36. Kd2 {[%clk 00:00:10]} Rb3 {[%emt 00:00:09] [%clk 00:01:57]} 37.
Rb1 {[%emt 00:00:09] [%clk 00:00:03]} Rxb1 {[%emt 00:00:05] [%clk 00:01:53]} 38.
Nxb1 {[%clk 00:00:05]} Ra7 {[%emt 00:00:03] [%clk 00:01:53]} 39. Kc3 {[%emt
00:00:03] [%clk 00:00:03]} g6 {[%emt 00:00:39] [%clk 00:01:16]} 40. Nd2 {[%emt
00:00:01] [%clk 00:00:05]} Ra3+ {[%clk 00:01:17]} 41. Nb3 {[%clk 00:00:06]} Ba4
{[%emt 00:00:04] [%clk 00:01:15]} 42. c5+ {[%clk 00:00:07]} Kc7 {[%emt 00:00:04]
[%clk 00:01:14]} 43. Bc4 {[%emt 00:00:02] [%clk 00:00:07]} bxc5 {[%emt 00:00:21]
[%clk 00:00:55]} 44. bxc5 {[%emt 00:00:01] [%clk 00:00:08]} Bxb3 {[%emt
00:00:01] [%clk 00:00:56]} 45. Bxb3 {[%clk 00:00:09]} f5 {[%emt 00:00:10] [%clk
00:00:49]} 46. Kb4 {[%emt 00:00:01]} Ra1 {[%clk 00:00:50]} 47. d6+ {[%emt
00:00:02] [%clk 00:00:10]} Kd7 {[%emt 00:00:01] [%clk 00:00:51]} 48. exf5 {[%emt
00:00:08] [%clk 00:00:05]} gxf5 {[%emt 00:00:01] [%clk 00:00:51]} 49. Bc4 {[%emt
00:00:04] [%clk 00:00:03]} e4 {[%emt 00:00:05] [%clk 00:00:48]} 50. Bb5+ {[%emt
00:00:01] [%clk 00:00:04]} Ke6 {[%clk 00:00:49]} 51. d7 {[%emt 00:00:04]} Ke7
{[%emt 00:00:07] [%clk 00:00:43]} 52. c6 {[%clk 00:00:04]} Kd8 {[%clk 00:00:44]}
53. Kc5 {[%emt 00:00:03] [%clk 00:00:04]} Kc7 {[%clk 00:00:46]} 54. Kd4 {[%clk
00:00:05]} Rb1 {[%emt 00:00:09] [%clk 00:00:39]} 55. Bc4 {[%emt 00:00:03] [%clk
00:00:04]} Rd1+ {[%emt 00:00:05] [%clk 00:00:36]} 56. Kc5 {[%emt 00:00:03]} e3
{[%emt 00:00:02] [%clk 00:00:36]} 57. Bb5 {[%emt 00:00:03] [%clk 00:00:03]} Rd2
{[%emt 00:00:01] [%clk 00:00:36]} 0-1

[Site "Europe Echecs"]

[Event "Championnat d'Europe de Blitz"]
[Date "2024.12.09"]
[White "Arnaudov, G. Petar"]
[Black "Sarana, Alexey"]
[WhiteElo "2401"]
[BlackElo "2674"]
[Round "6.3"]
[Result "0-1"]
[TimeControl "180+2"]

1. Nf3 {[%clk 00:03:01]} d5 {[%emt 00:00:02] [%clk 00:03:04]} 2. g3 {[%emt
00:00:03] [%clk 00:03:00]} g6 {[%emt 00:00:01] [%clk 00:03:05]} 3. c4 {[%emt
00:00:06] [%clk 00:02:57]} dxc4 {[%emt 00:00:04] [%clk 00:03:02]} 4. Na3 {[%emt
00:00:05] [%clk 00:02:53]} Bg7 {[%emt 00:00:02] [%clk 00:03:02]} 5. Nxc4 {[%emt
00:00:03] [%clk 00:02:52]} Be6 {[%emt 00:00:02] [%clk 00:03:03]} 6. d3 {[%emt
00:00:18] [%clk 00:02:36]} Bxc4 {[%emt 00:00:08] [%clk 00:02:58]} 7. dxc4 {[%emt
00:00:01] [%clk 00:02:36]} Qxd1+ {[%emt 00:00:01] [%clk 00:02:58]} 8. Kxd1
{[%emt 00:00:01] [%clk 00:02:37]} Nc6 {[%emt 00:00:02] [%clk 00:02:59]} 9. a3
{[%emt 00:00:13] [%clk 00:02:26]} Nf6 {[%emt 00:00:03] [%clk 00:02:58]} 10. Bg2
{[%emt 00:00:28] [%clk 00:02:00]} Ne4 {[%emt 00:00:55] [%clk 00:02:05]} 11. Rf1
{[%emt 00:00:23] [%clk 00:01:43]} Na5 {[%clk 00:02:05]} 12. Kc2 {[%emt 00:00:36]
[%clk 00:01:06]} Nxc4 {[%emt 00:00:02] [%clk 00:02:05]} 13. Ne1 {[%emt 00:00:09]
[%clk 00:00:59]} Ned6 {[%emt 00:00:16] [%clk 00:01:52]} 14. Nd3 {[%emt 00:00:06]
[%clk 00:00:55]} O-O-O {[%emt 00:00:04] [%clk 00:01:49]} 15. Rb1 {[%emt
00:00:10] [%clk 00:00:48]} Nb5 {[%emt 00:00:09] [%clk 00:01:42]} 16. e3 {[%emt
00:00:22] [%clk 00:00:29]} Bxb2 {[%emt 00:00:33] [%clk 00:01:10]} 17. Bxb2
{[%emt 00:00:10] [%clk 00:00:21]} Nbxa3+ {[%emt 00:00:02] [%clk 00:01:10]} 18.
Bxa3 {[%emt 00:00:07] [%clk 00:00:16]} Nxa3+ {[%emt 00:00:01] [%clk 00:01:11]}
19. Kc3 {[%emt 00:00:02] [%clk 00:00:16]} Nxb1+ {[%clk 00:01:12]} 20. Rxb1
{[%clk 00:00:17]} c6 {[%emt 00:00:02] [%clk 00:01:13]} 21. Ne5 {[%emt 00:00:05]
[%clk 00:00:14]} Rhf8 {[%emt 00:00:03] [%clk 00:01:12]} 22. Bf1 {[%emt 00:00:07]
[%clk 00:00:09]} Rd5 {[%emt 00:00:05] [%clk 00:01:09]} 23. f4 {[%emt 00:00:01]
[%clk 00:00:09]} f6 {[%emt 00:00:09] [%clk 00:01:03]} 24. Nd3 {[%emt 00:00:04]
[%clk 00:00:08]} Kc7 {[%emt 00:00:03] [%clk 00:01:01]} 25. Bg2 {[%emt 00:00:06]
[%clk 00:00:04]} Ra5 {[%emt 00:00:01] [%clk 00:01:02]} 26. Rb3 {[%emt 00:00:01]
[%clk 00:00:05]} Rd8 {[%emt 00:00:01] [%clk 00:01:02]} 27. Nb2 {[%clk 00:00:06]}
Ra1 {[%emt 00:00:05] [%clk 00:00:59]} 28. Be4 {[%emt 00:00:02] [%clk 00:00:07]}
Rc1+ {[%emt 00:00:02] [%clk 00:00:59]} 29. Bc2 {[%emt 00:00:02] [%clk 00:00:07]}
Rd5 {[%emt 00:00:08] [%clk 00:00:52]} 30. Nd3 {[%emt 00:00:02] [%clk 00:00:08]}
Rh1 {[%emt 00:00:03] [%clk 00:00:51]} 31. Ra3 {[%emt 00:00:01] [%clk 00:00:09]}
a6 {[%emt 00:00:02] [%clk 00:00:51]} 32. e4 {[%clk 00:00:10]} Rd6 {[%emt
00:00:02] [%clk 00:00:51]} 33. e5 {[%emt 00:00:02] [%clk 00:00:11]} fxe5 {[%clk
00:00:52]} 34. Nxe5 {[%emt 00:00:01] [%clk 00:00:12]} Rxh2 {[%emt 00:00:02]
[%clk 00:00:52]} 35. Nf7 {[%emt 00:00:04] [%clk 00:00:10]} Rd5 {[%emt 00:00:02]
[%clk 00:00:52]} 36. Ng5 {[%clk 00:00:11]} Rc5+ {[%emt 00:00:02] [%clk
00:00:52]} 37. Kd4 {[%emt 00:00:04] [%clk 00:00:00]} 0-1

[Site "Europe Echecs"]

[Event "Championnat d'Europe de Blitz"]
[Date "2024.12.09"]
[White "Korobov, Anton"]
[Black "Peyrer, Konstantin"]
[WhiteElo "2629"]
[BlackElo "2440"]
[Round "6.4"]
[Result "1-0"]
[TimeControl "180+2"]

1. e4 {[%emt 00:17:44] [%clk 00:03:03]} e5 {[%emt 00:00:02] [%clk 00:03:03]} 2.
Nf3 {[%emt 00:00:03] [%clk 00:03:02]} Nc6 {[%emt 00:00:01] [%clk 00:03:04]} 3.
Bc4 {[%emt 00:00:02] [%clk 00:03:02]} Nf6 {[%emt 00:00:04] [%clk 00:03:01]} 4.
d3 {[%emt 00:00:02] [%clk 00:03:02]} d5 {[%emt 00:00:02] [%clk 00:03:02]} 5.
exd5 {[%emt 00:00:03] [%clk 00:03:01]} Nxd5 {[%emt 00:00:01] [%clk 00:03:02]} 6.
O-O {[%emt 00:00:02] [%clk 00:03:01]} Nb6 {[%emt 00:00:02] [%clk 00:03:03]} 7.
Bb5 {[%emt 00:00:02] [%clk 00:03:01]} Bd6 {[%emt 00:00:01] [%clk 00:03:04]} 8.
Re1 {[%emt 00:00:08] [%clk 00:02:55]} f6 {[%emt 00:00:07] [%clk 00:02:59]} 9. d4
{[%emt 00:00:12] [%clk 00:02:46]} O-O {[%emt 00:00:02] [%clk 00:02:58]} 10. c3
{[%emt 00:00:15] [%clk 00:02:33]} exd4 {[%emt 00:00:11] [%clk 00:02:50]} 11.
cxd4 {[%emt 00:00:01] [%clk 00:02:33]} Bg4 {[%emt 00:00:08] [%clk 00:02:44]} 12.
Be3 {[%emt 00:00:06] [%clk 00:02:29]} Kh8 {[%emt 00:00:11] [%clk 00:02:35]} 13.
Nc3 {[%emt 00:00:04] [%clk 00:02:27]} Ne7 {[%emt 00:00:05] [%clk 00:02:32]} 14.
h3 {[%emt 00:00:20] [%clk 00:02:09]} Bh5 {[%emt 00:00:01] [%clk 00:02:33]} 15.
Ne4 {[%emt 00:00:26] [%clk 00:01:45]} Nbd5 {[%emt 00:00:03] [%clk 00:02:33]} 16.
Bd2 {[%emt 00:00:15] [%clk 00:01:36]} a6 {[%emt 00:00:12] [%clk 00:02:18]} 17.
Be2 {[%emt 00:00:03] [%clk 00:01:36]} Nc6 {[%emt 00:00:08] [%clk 00:02:12]} 18.
Nh4 {[%emt 00:00:15] [%clk 00:01:23]} Bf7 {[%emt 00:00:20] [%clk 00:01:53]} 19.
Nf5 {[%emt 00:00:02] [%clk 00:01:23]} Bg6 {[%emt 00:00:08] [%clk 00:01:48]} 20.
Bg4 {[%emt 00:00:05] [%clk 00:01:19]} Nde7 {[%emt 00:00:14] [%clk 00:01:36]} 21.
Nexd6 {[%emt 00:00:14] [%clk 00:01:08]} cxd6 {[%emt 00:00:01] [%clk 00:01:37]}
22. Nxe7 {[%emt 00:00:01] [%clk 00:01:08]} Nxe7 {[%emt 00:00:02] [%clk
00:01:37]} 23. Qb3 {[%emt 00:00:01] [%clk 00:01:09]} Nc6 {[%emt 00:00:11] [%clk
00:01:29]} 24. Qxb7 {[%emt 00:00:09] [%clk 00:01:02]} Nxd4 {[%emt 00:00:08]
[%clk 00:01:22]} 25. Rac1 {[%emt 00:00:01] [%clk 00:01:03]} Rb8 {[%emt 00:00:19]
[%clk 00:01:05]} 26. Qxa6 {[%emt 00:00:03] [%clk 00:01:02]} Rxb2 {[%emt
00:00:06] [%clk 00:01:02]} 27. Bc3 {[%emt 00:00:07] [%clk 00:00:57]} Rb6 {[%emt
00:00:01] [%clk 00:01:02]} 28. Qc4 {[%emt 00:00:18] [%clk 00:00:41]} Nc2 {[%emt
00:00:05] [%clk 00:00:59]} 29. Red1 {[%emt 00:00:04] [%clk 00:00:39]} Qa8 {[%emt
00:00:12] [%clk 00:00:49]} 30. a4 {[%emt 00:00:04] [%clk 00:00:37]} Be4 {[%emt
00:00:17] [%clk 00:00:35]} 31. a5 {[%emt 00:00:01] [%clk 00:00:38]} Rbb8 {[%emt
00:00:03] [%clk 00:00:34]} 32. Rxd6 {[%emt 00:00:04] [%clk 00:00:35]} Na3 {[%emt
00:00:09] [%clk 00:00:28]} 33. Qa6 {[%emt 00:00:03] [%clk 00:00:33]} Bxg2 {[%emt
00:00:05] [%clk 00:00:25]} 34. Qxa8 {[%emt 00:00:01] [%clk 00:00:34]} Bxa8
{[%emt 00:00:01] [%clk 00:00:26]} 35. Rb6 {[%emt 00:00:02] [%clk 00:00:35]} Nc4
{[%emt 00:00:10] [%clk 00:00:17]} 36. Rxb8 {[%emt 00:00:02] [%clk 00:00:35]}
Rxb8 {[%emt 00:00:02] [%clk 00:00:18]} 37. a6 {[%emt 00:00:02] [%clk 00:00:34]}
Bd5 {[%emt 00:00:09] [%clk 00:00:11]} 38. Bd4 {[%clk 00:00:35]} Rd8 {[%emt
00:00:07] [%clk 00:00:06]} 39. a7 {[%emt 00:00:02] [%clk 00:00:36]} Kg8 {[%emt
00:00:06]} 40. Rb1 {[%emt 00:00:06] [%clk 00:00:30]} Kf7 {[%emt 00:00:04] [%clk
00:00:00]} 1-0

[Site "Europe Echecs"]

[Event "Championnat d'Europe de Blitz"]
[Date "2024.12.09"]
[White "Deac, Bogdan-Daniel"]
[Black "Quparadze, Giga"]
[WhiteElo "2696"]
[BlackElo "2537"]
[Round "6.5"]
[Result "1/2-1/2"]
[TimeControl "180+2"]

1. d4 {[%emt 00:00:02] [%clk 00:03:02]} Nf6 {[%emt 00:00:01] [%clk 00:03:03]} 2.
c4 {[%emt 00:00:02] [%clk 00:03:03]} e6 {[%emt 00:00:01] [%clk 00:03:04]} 3. Nc3
{[%emt 00:00:01] [%clk 00:03:03]} Bb4 {[%emt 00:00:01] [%clk 00:03:04]} 4. e3
{[%emt 00:00:02] [%clk 00:03:04]} O-O {[%emt 00:00:02] [%clk 00:03:04]} 5. Bd3
{[%emt 00:00:02] [%clk 00:03:05]} c5 {[%clk 00:03:05]} 6. Nge2 {[%emt 00:00:01]
[%clk 00:03:05]} d5 {[%emt 00:00:07] [%clk 00:03:00]} 7. cxd5 {[%emt 00:00:01]
[%clk 00:03:06]} cxd4 {[%emt 00:00:02] [%clk 00:03:01]} 8. exd4 {[%clk
00:03:07]} exd5 {[%emt 00:00:05] [%clk 00:02:57]} 9. O-O {[%emt 00:00:06] [%clk
00:03:04]} h6 {[%emt 00:00:06] [%clk 00:02:53]} 10. Bf4 {[%emt 00:00:09] [%clk
00:02:57]} Bd6 {[%emt 00:00:12] [%clk 00:02:43]} 11. Qd2 {[%emt 00:00:15] [%clk
00:02:43]} Bxf4 {[%emt 00:00:03] [%clk 00:02:42]} 12. Nxf4 {[%emt 00:00:09]
[%clk 00:02:36]} Nc6 {[%emt 00:00:02] [%clk 00:02:43]} 13. Bc2 {[%emt 00:00:02]
[%clk 00:02:36]} Na5 {[%emt 00:00:22] [%clk 00:02:23]} 14. Qd3 {[%emt 00:00:16]
[%clk 00:02:22]} Re8 {[%emt 00:00:06] [%clk 00:02:19]} 15. Rfe1 {[%emt 00:00:23]
[%clk 00:02:01]} Be6 {[%emt 00:00:04] [%clk 00:02:17]} 16. Re2 {[%emt 00:00:24]
[%clk 00:01:39]} Qd6 {[%emt 00:00:05] [%clk 00:02:13]} 17. g3 {[%clk 00:01:40]}
Nc6 {[%emt 00:00:05] [%clk 00:02:10]} 18. a3 {[%emt 00:00:02] [%clk 00:01:40]}
Bg4 {[%emt 00:00:06] [%clk 00:02:06]} 19. Rxe8+ {[%emt 00:00:33] [%clk
00:01:10]} Rxe8 {[%clk 00:02:07]} 20. f3 {[%emt 00:00:20] [%clk 00:00:52]} Bc8
{[%emt 00:00:11] [%clk 00:01:58]} 21. Kf2 {[%emt 00:00:08] [%clk 00:00:46]} g5
{[%emt 00:00:07] [%clk 00:01:52]} 22. Ng2 {[%emt 00:00:12] [%clk 00:00:36]} Ne7
{[%emt 00:00:02] [%clk 00:01:52]} 23. Re1 {[%emt 00:00:08] [%clk 00:00:30]} Bf5
{[%emt 00:00:04] [%clk 00:01:50]} 24. Qd2 {[%emt 00:00:02] [%clk 00:00:30]} Bxc2
{[%emt 00:00:05] [%clk 00:01:47]} 25. Qxc2 {[%emt 00:00:02] [%clk 00:00:31]} Qd7
{[%emt 00:00:04] [%clk 00:01:45]} 26. Qd3 {[%emt 00:00:11] [%clk 00:00:21]} Qh3
{[%emt 00:00:27] [%clk 00:01:21]} 27. Kg1 {[%emt 00:00:01] [%clk 00:00:21]} Qd7
{[%emt 00:00:02] [%clk 00:01:21]} 28. Re2 {[%emt 00:00:05] [%clk 00:00:18]} Nc6
{[%emt 00:00:08] [%clk 00:01:15]} 29. Rxe8+ {[%emt 00:00:05] [%clk 00:00:16]}
Qxe8 {[%emt 00:00:01] [%clk 00:01:16]} 30. Ne3 {[%emt 00:00:02] [%clk 00:00:16]}
Qe6 {[%emt 00:00:02] [%clk 00:01:16]} 31. Kf2 {[%emt 00:00:03] [%clk 00:00:15]}
Qh3 {[%emt 00:00:06] [%clk 00:01:11]} 32. Kg1 {[%emt 00:00:05] [%clk 00:00:13]}
Qe6 {[%emt 00:00:01] [%clk 00:01:11]} 33. Kg2 {[%emt 00:00:06] [%clk 00:00:10]}
Kf8 {[%emt 00:00:09] [%clk 00:01:04]} 34. Nf5 {[%emt 00:00:05] [%clk 00:00:06]}
Ne8 {[%emt 00:00:06] [%clk 00:01:00]} 35. Ne3 {[%emt 00:00:03] [%clk 00:00:06]}
Nf6 {[%emt 00:00:04] [%clk 00:00:58]} 36. Kf2 {[%emt 00:00:02] [%clk 00:00:06]}
Qh3 {[%emt 00:00:02] [%clk 00:00:57]} 37. Kg1 {[%emt 00:00:02] [%clk 00:00:07]}
Qe6 {[%emt 00:00:01] [%clk 00:00:57]} 38. Kf2 {[%emt 00:00:02] [%clk 00:00:07]}
Qh3 {[%emt 00:00:01] [%clk 00:00:58]} 39. Kg1 {[%emt 00:00:02] [%clk 00:00:08]}
Qe6 {[%emt 00:00:01] [%clk 00:00:59]} 40. Kf2 {[%emt 00:00:02] [%clk 00:00:09]}
1/2-1/2

[Site "Europe Echecs"]